fUSD/lending_fUSD_20240614
["ID","MTS","AMOUNT","RATE_DAILY","PERIOD"]
[329458052,1718375496561,-500.0,0.0002493,3]
[329458053,1718375496577,-500.0,0.0002493,3]
[329458054,1718375496589,-808.2,0.0002493,3]
[329458055,1718375496613,-1050.5,0.0002493,3]
[329458056,1718375496645,-500.0,0.0002493,3]
[329458057,1718375496672,-500.0,0.0002493,3]
[329458058,1718375496686,-500.0,0.0002493,3]
[329458059,1718375496708,-209.57427776,0.0002493,3]
[329458060,1718375496720,-500.0,0.0002493,3]
[329458061,1718375496754,-500.0,0.0002493,3]
[329458062,1718375496767,-500.0,0.0002493,3]
[329458063,1718375496789,-670.95,0.0002493,3]
[329458064,1718375496833,-500.0,0.0002493,3]
[329458065,1718375496853,-500.0,0.0002493,3]
[329458066,1718375496870,-500.0,0.0002493,3]
[329458067,1718375496884,-500.0,0.0002493,3]
[329458068,1718375496916,-500.0,0.0002493,3]
[329458069,1718375496931,-500.0,0.0002493,3]
[329458070,1718375496954,-500.0,0.0002493,3]
[329458071,1718375496970,-500.0,0.0002493,3]
[329458072,1718375496982,-500.0,0.0002493,3]
[329458073,1718375497000,-500.0,0.0002493,3]
[329458074,1718375497019,-500.0,0.0002493,3]
[329458075,1718375497035,-500.0,0.0002493,3]
[329458076,1718375497047,-500.0,0.0002493,3]
[329458077,1718375497058,-500.0,0.0002493,3]
[329458078,1718375497083,-500.0,0.0002493,3]
[329458079,1718375497102,-500.0,0.0002493,3]
[329458080,1718375497119,-575.16,0.0002493,3]
[329458081,1718375497147,-571.6,0.0002493,3]
[329458082,1718375497163,-500.0,0.0002493,3]
[329458083,1718375497180,-500.0,0.0002493,3]
[329458084,1718375497201,-500.0,0.0002493,3]
[329458085,1718375497222,-500.0,0.0002493,3]
[329458086,1718375497237,-500.0,0.0002493,3]
[329458087,1718375497250,-500.0,0.0002493,3]
[329458088,1718375497271,-553.13,0.0002493,3]
[329458089,1718375497298,-500.0,0.0002493,3]
[329458090,1718375497325,-408.29713466,0.0002493,3]
[329458091,1718375497347,-500.0,0.0002493,3]
[329458092,1718375497370,-500.0,0.0002493,3]
[329458093,1718375497392,-500.0,0.0002493,3]
[329458094,1718375497403,-491.8841496,0.0002493,3]
[329458095,1718375497439,-500.0,0.0002493,3]
[329458096,1718375497455,-531.27187359,0.0002493,3]
[329458097,1718375497526,-500.0,0.0002493,3]
[329458098,1718375497550,-500.0,0.0002493,3]
[329458099,1718375497566,-418.63348918,0.0002493,3]
[329458100,1718375497608,-500.0,0.0002493,3]
[329458101,1718375497668,-500.0,0.0002493,3]
[329458102,1718375497679,-500.0,0.0002493,3]
[329458103,1718375497691,-500.0,0.0002493,3]
[329458104,1718375497716,-505.66,0.0002493,3]
[329458105,1718375497740,-385.70865472,0.0002493,3]
[329458106,1718375497757,-500.0,0.0002493,3]
[329458107,1718375497789,-500.0,0.0002493,3]
[329458108,1718375497802,-514.73998674,0.0002493,3]
[329458109,1718375497825,-500.0,0.0002493,3]
[329458110,1718375497869,-500.0,0.0002493,3]
[329458111,1718375497882,-500.0,0.0002493,3]
[329458112,1718375497894,-500.0,0.0002493,3]
[329458113,1718375497911,-518.43584095,0.0002493,3]
[329458114,1718375497922,-368.39700966,0.0002493,3]
[329458115,1718375497945,-500.0,0.0002493,3]
[329458116,1718375497960,-500.0,0.0002493,3]
[329458117,1718375497990,-500.0,0.0002493,3]
[329458118,1718375498004,-500.0,0.0002493,3]
[329458119,1718375498036,-500.0,0.0002493,3]
[329458120,1718375498048,-500.0,0.0002493,3]
[329458121,1718375498082,-500.0,0.0002493,3]
[329458122,1718375498134,-157.54070931,0.0002493,3]
[329458123,1718375498154,-500.0,0.0002493,3]
[329458124,1718375498176,-500.0,0.0002493,3]
[329458125,1718375498204,-537.48076368,0.0002493,3]
[329458126,1718375498216,-500.0,0.0002493,3]
[329458127,1718375498241,-500.0,0.0002493,3]
[329458128,1718375498289,-534.36,0.0002493,3]
[329458129,1718375498318,-500.0,0.0002493,3]
[329458130,1718375498373,-500.0,0.0002493,3]
[329458131,1718375498384,-500.0,0.0002493,3]
[329458132,1718375498398,-500.0,0.0002493,3]
[329458133,1718375498432,-500.0,0.0002493,3]
[329458134,1718375498454,-500.0,0.0002493,3]
[329458135,1718375498659,-500.0,0.0002493,3]
[329458136,1718375498704,-500.0,0.0002493,3]
[329458137,1718375498723,-500.0,0.0002493,3]
[329458138,1718375498738,-500.0,0.0002493,3]
[329458139,1718375498751,-272.64699454,0.0002493,3]
[329458140,1718375498778,-500.0,0.0002493,3]
[329458141,1718375498794,-500.0,0.0002493,3]
[329458142,1718375498821,-500.0,0.0002493,3]
[329458143,1718375498851,-770.66,0.0002493,3]
[329458144,1718375498869,-565.43,0.0002493,3]
[329458145,1718375498884,-500.0,0.0002493,3]
[329458146,1718375498898,-720.69,0.0002493,3]
[329458147,1718375498917,-1360.57,0.0002493,3]
[329458148,1718375498938,-500.0,0.0002493,3]
[329458149,1718375498967,-500.0,0.0002493,3]
[329458150,1718375498998,-517.89,0.0002493,3]
[329458151,1718375499020,-867.52,0.0002493,3]
[329458152,1718375499044,-500.0,0.0002493,3]
[329458153,1718375499092,-500.0,0.0002493,3]
[329458154,1718375499130,-500.0,0.0002493,3]
[329458155,1718375499158,-1037.98,0.0002493,3]
[329458156,1718375499212,-500.0,0.0002493,3]
[329458157,1718375499223,-500.0,0.0002493,3]
[329458158,1718375499276,-978.78,0.0002493,3]
[329458159,1718375499290,-998.5,0.0002493,3]
[329458160,1718375499302,-500.0,0.0002493,3]
[329458161,1718375499314,-1097.05,0.0002493,3]
[329458162,1718375499337,-500.0,0.0002493,3]
[329458163,1718375499357,-500.0,0.0002493,3]
[329458164,1718375499386,-500.0,0.0002493,3]
[329458165,1718375499413,-500.0,0.0002493,3]
[329458166,1718375499432,-1453.44,0.0002493,3]
[329458167,1718375499444,-500.0,0.0002493,3]
[329458168,1718375499458,-2859.26,0.0002493,3]
[329458169,1718375499469,-2716.32,0.0002493,3]
[329458170,1718375499494,-565.91,0.0002493,3]
[329458171,1718375499510,-744.5,0.0002493,3]
[329458172,1718375499525,-500.0,0.0002493,3]
[329458173,1718375499544,-6986.41,0.0002493,3]
[329458174,1718375499555,-966.62,0.0002493,3]
[329458175,1718375499567,-897.59,0.0002493,3]
[329458176,1718375499581,-500.0,0.0002493,3]
[329458177,1718375499615,-2326.34,0.0002493,3]
[329458178,1718375499635,-500.0,0.0002493,3]
[329458179,1718375499648,-500.0,0.0002493,3]
[329458180,1718375499663,-1641.07,0.0002493,3]
[329458181,1718375499674,-961.39,0.0002493,3]
[329458182,1718375499710,-500.0,0.0002493,3]
[329458183,1718375499739,-1799.08,0.0002493,3]
[329458184,1718375499758,-662.28,0.0002493,3]
[329458185,1718375499774,-1117.74,0.0002493,3]
[329458186,1718375499802,-500.0,0.0002493,3]
[329458187,1718375499813,-9904.2,0.0002493,3]
[329458188,1718375499829,-2379.41,0.0002493,3]
[329458189,1718375499862,-500.0,0.0002493,3]
[329458190,1718375499875,-500.0,0.0002493,3]
[329458191,1718375499917,-1174.73,0.0002493,3]
[329458192,1718375499929,-3409.68,0.0002493,3]
[329458193,1718375499941,-1017.95,0.0002493,3]
[329458194,1718375499952,-500.0,0.0002493,3]
[329458195,1718375499983,-1391.12,0.0002493,3]
[329458196,1718375500008,-500.0,0.0002493,3]
[329458197,1718375500035,-500.0,0.0002493,3]
[329458198,1718375500049,-2216.15420436,0.0002493,3]
[329458199,1718375500108,-2429.69579564,0.0002493,3]
[329458200,1718375500122,-500.0,0.0002493,3]
[329458201,1718375500154,-2411.48,0.0002493,3]
[329458202,1718375500173,-500.0,0.0002493,3]
[329458203,1718375500196,-901.74,0.0002493,3]
[329458204,1718375500208,-2493.07,0.0002493,3]
[329458205,1718375500238,-672.85,0.0002493,3]
[329458206,1718375500260,-500.0,0.0002493,3]
[329458207,1718375500287,-500.0,0.0002493,3]
[329458208,1718375500363,-183.64868217,0.0002493,3]
[329458209,1718375500377,-500.0,0.0002493,3]
[329458210,1718375500409,-500.0,0.0002493,3]
[329458211,1718375500466,-940.58,0.0002493,3]
[329458212,1718375500496,-500.0,0.0002493,3]
[329458213,1718375500510,-500.0,0.0002493,3]
[329458214,1718375500548,-500.0,0.0002493,3]
[329458215,1718375500580,-500.0,0.0002493,3]
[329458216,1718375500591,-3215.26,0.0002493,3]
[329458217,1718375500615,-500.0,0.0002493,3]
[329458218,1718375500631,-500.0,0.0002493,3]
[329458219,1718375500660,-500.0,0.0002493,3]
[329458220,1718375500680,-504.94426121,0.00024931,3]
[329458221,1718375500697,-500.0,0.00024931,3]
[329458222,1718375500730,-500.0,0.00024931,3]
[329458223,1718375500745,-500.0,0.00024931,3]
[329458224,1718375500832,-500.0,0.00024931,3]
[329458225,1718375500870,-500.0,0.00024931,3]
[329458226,1718375500892,-500.0,0.00024931,3]
[329458227,1718375500904,-500.0,0.00024931,3]
[329458228,1718375500941,-500.0,0.00024931,3]
[329458229,1718375500966,-500.0,0.00024931,3]
[329458230,1718375500999,-500.0,0.00024931,3]
[329458231,1718375501010,-500.0,0.00024931,3]
[329458232,1718375501025,-500.0,0.00024931,3]
[329458233,1718375501049,-500.0,0.00024931,3]
[329458234,1718375501071,-500.0,0.00024931,3]
[329458235,1718375501103,-500.0,0.00024931,3]
[329458236,1718375501114,-500.0,0.00024931,3]
[329458237,1718375501127,-500.0,0.00024931,3]
[329458238,1718375501137,-500.0,0.00024931,3]
[329458239,1718375501154,-500.0,0.00024931,3]
[329458240,1718375501166,-554.87781358,0.00024931,3]
[329458241,1718375501178,-500.0,0.00024931,3]
[329458242,1718375501189,-500.0,0.00024931,3]
[329458243,1718375501208,-500.0,0.00024931,3]
[329458244,1718375501234,-500.0,0.00024931,3]
[329458245,1718375501255,-500.0,0.00024931,3]
[329458246,1718375501268,-549.86,0.00024931,3]
[329458247,1718375501289,-500.0,0.00024931,3]
[329458248,1718375501300,-500.0,0.00024931,3]
[329458249,1718375501325,-513.02,0.00024931,3]
[329458250,1718375501338,-586.34,0.00024931,3]
[329458251,1718375501365,-500.0,0.00024931,3]
[329458252,1718375501379,-585.09,0.00024931,3]
[329458253,1718375501396,-500.0,0.00024931,3]
[329458254,1718375501421,-500.0,0.00024931,3]
[329458255,1718375501460,-553.77,0.00024931,3]
[329458256,1718375501472,-500.0,0.00024931,3]
[329458257,1718375501490,-500.0,0.00024931,3]
[329458258,1718375501505,-500.0,0.00024931,3]
[329458259,1718375501528,-500.0,0.00024931,3]
[329458260,1718375501543,-500.0,0.00024931,3]
[329458261,1718375501556,-432.18283215,0.00024931,3]
[329458262,1718375501567,-500.0,0.00024931,3]
[329458263,1718375501578,-151.0,0.00024931,7]
[329458264,1718375501590,-500.0,0.00024931,3]
[329458265,1718375501607,-500.0,0.00024931,3]
[329458266,1718375501641,-659.99,0.00024931,3]
[329458267,1718375501666,-500.0,0.00024931,3]
[329458268,1718375501703,-500.0,0.00024931,3]
[329458269,1718375501718,-500.0,0.00024931,3]
[329458270,1718375501731,-500.0,0.00024931,3]
[329458271,1718375501752,-576.26,0.00024931,3]
[329458272,1718375501763,-500.0,0.00024931,3]
[329458273,1718375501782,-500.0,0.00024931,3]
[329458274,1718375501797,-1274.73,0.00024931,3]
[329458275,1718375501816,-500.0,0.00024931,3]
[329458276,1718375501833,-661.6,0.00024931,3]
[329458277,1718375501849,-500.0,0.00024931,3]
[329458278,1718375501866,-500.0,0.00024931,3]
[329458279,1718375501880,-583.29,0.00024931,3]
[329458280,1718375501905,-500.0,0.00024931,3]
[329458281,1718375501926,-500.0,0.00024931,3]
[329458282,1718375501938,-500.0,0.00024931,3]
[329458283,1718375501958,-500.0,0.00024931,3]
[329458284,1718375501977,-421.922705,0.00024931,3]
[329458285,1718375501989,-500.0,0.00024931,3]
[329458286,1718375502000,-500.0,0.00024931,3]
[329458287,1718375502010,-687.41,0.00024931,3]
[329458288,1718375502029,-544.95,0.00024931,3]
[329458289,1718375502040,-594.53,0.00024931,3]
[329458290,1718375502053,-500.0,0.00024931,3]
[329458291,1718375502076,-583.29,0.00024931,3]
[329458292,1718375502136,-731.23,0.00024931,3]
[329458293,1718375502147,-500.0,0.00024931,3]
[329458294,1718375502167,-500.0,0.00024931,3]
[329458295,1718375502178,-500.0,0.00024931,3]
[329458296,1718375502190,-500.0,0.00024931,3]
[329458297,1718375502204,-863.56,0.00024931,3]
[329458298,1718375502219,-500.0,0.00024931,3]
[329458299,1718375502231,-500.0,0.00024931,3]
[329458300,1718375502249,-500.0,0.00024931,3]
[329458301,1718375502270,-500.0,0.00024931,3]
[329458302,1718375502315,-500.0,0.00024931,3]
[329458303,1718375502335,-500.0,0.00024931,3]
[329458304,1718375502358,-552.62,0.00024931,3]
[329458305,1718375502370,-500.0,0.00024931,3]
[329458306,1718375502389,-500.0,0.00024931,3]
[329458307,1718375502439,-500.0,0.00024931,3]
[329458308,1718375502479,-500.0,0.00024931,3]
[329458309,1718375502493,-500.0,0.00024931,3]
[329458310,1718375502520,-500.0,0.00024931,3]
[329458311,1718375502547,-500.0,0.00024931,3]
[329458312,1718375502571,-699.76,0.00024931,3]
[329458313,1718375502593,-500.0,0.00024931,3]
[329458314,1718375502610,-500.0,0.00024931,3]
[329458315,1718375502635,-500.0,0.00024931,3]
[329458316,1718375502650,-500.0,0.00024931,3]
[329458317,1718375502676,-504.05,0.00024931,3]
[329458318,1718375502691,-500.0,0.00024931,3]
[329458319,1718375502717,-500.0,0.00024931,3]
[329458320,1718375502743,-1140.16,0.00024931,3]
[329458321,1718375502757,-222.22097817,0.00024931,3]
[329458322,1718375502768,-638.76,0.00024931,3]
[329458323,1718375502789,-557.78864647,0.00024931,3]
[329458324,1718375502822,-500.0,0.00024931,3]
[329458325,1718375502853,-500.0,0.00024931,3]
[329458326,1718375502876,-151.0,0.00024931,7]
[329458327,1718375502896,-500.0,0.00024931,3]
[329458328,1718375502932,-500.0,0.00024931,3]
[329458329,1718375502951,-500.0,0.00024931,3]
[329458330,1718375502967,-556.79,0.00024931,3]
[329458331,1718375503021,-674.35,0.00024931,3]
[329458332,1718375503042,-500.0,0.00024931,3]
[329458333,1718375503061,-500.0,0.00024931,3]
[329458334,1718375503074,-500.0,0.00024931,3]
[329458335,1718375503086,-500.0,0.00024931,3]
[329458336,1718375503100,-616.59,0.00024931,3]
[329458337,1718375503149,-500.0,0.00024931,3]
[329458338,1718375503169,-706.58,0.00024931,3]
[329458339,1718375503193,-500.0,0.00024931,3]
[329458340,1718375503218,-779.84,0.00024931,3]
[329458341,1718375503229,-500.0,0.00024931,3]
[329458342,1718375503240,-500.0,0.00024931,3]
[329458343,1718375503261,-500.0,0.00024931,3]
[329458344,1718375503285,-516.46,0.00024931,3]
[329458345,1718375503305,-800.16,0.00024931,3]
[329458346,1718375503380,-522.87,0.00024931,3]
[329458347,1718375503392,-513.07,0.00024931,3]
[329458348,1718375503413,-665.67,0.00024931,3]
[329458349,1718375503424,-500.0,0.00024931,3]
[329458350,1718375503482,-563.35,0.00024931,3]
[329458351,1718375503494,-508.3,0.00024931,3]
[329458352,1718375503509,-634.86,0.00024931,3]
[329458353,1718375503534,-500.0,0.00024931,3]
[329458354,1718375503545,-500.0,0.00024931,3]
[329458355,1718375503565,-304.68,0.00024931,3]
[329458356,1718375503577,-500.0,0.00024931,3]
[329458357,1718375503594,-500.0,0.00024931,3]
[329458358,1718375503613,-500.0,0.00024931,3]
[329458359,1718375503630,-520.19,0.00024931,3]
[329458360,1718375503657,-872.71,0.00024931,3]
[329458361,1718375503675,-500.0,0.00024931,3]
[329458362,1718375503712,-500.0,0.00024931,3]
[329458363,1718375503729,-569.43,0.00024931,3]
[329458364,1718375503745,-737.37,0.00024931,3]
[329458365,1718375503780,-151.0,0.00024931,7]
[329458366,1718375503824,-974.62,0.00024931,3]
[329458367,1718375503842,-500.0,0.00024931,3]
[329458368,1718375503857,-500.0,0.00024931,3]
[329458369,1718375503878,-840.75,0.00024931,3]
[329458370,1718375503901,-1448.13,0.00024931,3]
[329458371,1718375503932,-824.37,0.00024931,7]
[329458372,1718375503965,-500.0,0.00024931,3]
[329458373,1718375503977,-597.24,0.00024931,3]
[329458374,1718375504017,-500.0,0.00024931,3]
[329458375,1718375504086,-673.61,0.00024931,3]
[329458376,1718375504176,-500.0,0.00024931,3]
[329458377,1718375504190,-925.27,0.00024931,3]
[329458378,1718375504217,-500.0,0.00024931,3]
[329458379,1718375504233,-500.0,0.00024931,3]
[329458380,1718375504252,-500.0,0.00024931,3]
[329458381,1718375504282,-500.0,0.00024931,3]
[329458382,1718375504368,-635.65,0.00024931,3]
[329458383,1718375504397,-500.0,0.00024931,3]
[329458384,1718375504418,-500.0,0.00024931,3]
[329458385,1718375504434,-810.99,0.00024931,3]
[329458386,1718375504497,-679.8,0.00024931,3]
[329458387,1718375504518,-500.0,0.00024931,3]
[329458388,1718375504537,-500.0,0.00024931,3]
[329458389,1718375504569,-500.0,0.00024931,3]
[329458390,1718375504594,-500.0,0.00024931,3]
[329458391,1718375504618,-242.671073,0.00024931,7]
[329458392,1718375504639,-500.0,0.00024931,3]
[329458393,1718375504652,-500.0,0.00024931,3]
[329458394,1718375504663,-500.0,0.00024931,3]
[329458395,1718375504674,-806.09,0.00024931,3]
[329458396,1718375504685,-500.0,0.00024931,3]
[329458397,1718375504696,-500.0,0.00024931,3]
[329458398,1718375504720,-500.0,0.00024931,3]
[329458399,1718375504756,-500.0,0.00024931,3]
[329458400,1718375504767,-500.0,0.00024931,3]
[329458401,1718375504779,-151.0,0.00024931,7]
[329458402,1718375504798,-542.58,0.00024931,3]
[329458403,1718375504810,-889.82,0.00024931,3]
[329458404,1718375504824,-922.65,0.00024931,3]
[329458405,1718375504861,-500.0,0.00024931,3]
[329458406,1718375504889,-500.0,0.00024931,3]
[329458407,1718375504900,-500.0,0.00024931,3]
[329458408,1718375504913,-684.32,0.00024931,3]
[329458409,1718375504930,-500.0,0.00024931,3]
[329458410,1718375504966,-3155.24,0.00024931,3]
[329458411,1718375504990,-1255.65,0.00024931,3]
[329458412,1718375505014,-539.21,0.00024931,3]
[329458413,1718375505027,-500.0,0.00024931,3]
[329458414,1718375505058,-540.88,0.00024931,3]
[329458415,1718375505086,-500.0,0.00024931,3]
[329458416,1718375505132,-630.44,0.00024931,3]
[329458417,1718375505162,-839.24,0.00024931,3]
[329458418,1718375505181,-519.68,0.00024931,3]
[329458419,1718375505194,-1158.77,0.00024931,3]
[329458420,1718375505207,-6950.11,0.00024931,3]
[329458421,1718375505223,-713.69,0.00024931,3]
[329458422,1718375505239,-500.0,0.00024931,3]
[329458423,1718375505283,-500.0,0.00024931,3]
[329458424,1718375505294,-582.9,0.00024931,3]
[329458425,1718375505342,-997.72,0.00024931,3]
[329458426,1718375505365,-878.84,0.00024931,3]
[329458427,1718375505394,-500.0,0.00024931,3]
[329458428,1718375505440,-500.0,0.00024931,3]
[329458429,1718375505473,-500.0,0.00024931,3]
[329458430,1718375505504,-733.88,0.00024931,3]
[329458431,1718375505534,-500.0,0.00024931,3]
[329458432,1718375505546,-5129.19,0.00024931,3]
[329458433,1718375505562,-500.0,0.00024931,3]
[329458434,1718375505584,-151.0,0.00024931,7]
[329458435,1718375505625,-764.1,0.00024931,3]
[329458436,1718375505649,-500.0,0.00024931,3]
[329458437,1718375505662,-2188.4,0.00024931,3]
[329458438,1718375505675,-561.81,0.00024931,3]
[329458439,1718375505689,-558.21,0.00024931,3]
[329458440,1718375505702,-12844.82,0.00024931,3]
[329458441,1718375505733,-151.0,0.00024931,7]
[329458442,1718375505768,-808.51,0.00024931,3]
[329458443,1718375505788,-3054.46,0.00024931,3]
[329458444,1718375505824,-878.54,0.00024931,3]
[329458445,1718375505844,-2787.84,0.00024931,3]
[329458446,1718375505872,-500.0,0.00024931,3]
[329458447,1718375505885,-678.28,0.00024931,3]
[329458448,1718375505897,-500.0,0.00024931,3]
[329458449,1718375505907,-500.0,0.00024931,3]
[329458450,1718375505927,-500.0,0.00024931,3]
[329458451,1718375505939,-2491.43,0.00024931,3]
[329458452,1718375505993,-511.55,0.00024931,3]
[329458453,1718375506011,-949.45,0.00024931,3]
[329458454,1718375506023,-500.0,0.00024931,3]
[329458455,1718375506037,-2875.52,0.00024931,3]
[329458456,1718375506064,-1483.03,0.00024931,3]
[329458457,1718375506080,-151.0,0.00024931,7]
[329458458,1718375506103,-500.0,0.00024931,3]
[329458459,1718375506115,-574.29,0.00024931,3]
[329458460,1718375506132,-500.0,0.00024931,3]
[329458461,1718375506150,-366.094373,0.00024931,3]
[329458462,1718375506200,-500.0,0.00024931,3]
[329458463,1718375506211,-990.79,0.00024931,3]
[329458464,1718375506223,-1277.18,0.00024931,3]
[329458465,1718375506248,-1018.46,0.00024931,3]
[329458466,1718375506259,-557.27,0.00024931,3]
[329458467,1718375506273,-2532.46,0.00024931,3]
[329458468,1718375506296,-500.0,0.00024931,3]
[329458469,1718375506333,-500.0,0.00024931,3]
[329458470,1718375506377,-181.237324,0.00024931,7]
[329458471,1718375506399,-593.7,0.00024931,3]
[329458472,1718375506412,-555.82,0.00024931,3]
[329458473,1718375506431,-1387.15,0.00024931,3]
[329458474,1718375506442,-500.0,0.00024931,3]
[329458475,1718375506500,-656.82,0.00024931,3]
[329458476,1718375506515,-500.0,0.00024931,3]
[329458477,1718375506529,-500.0,0.00024931,3]
[329458478,1718375506547,-500.0,0.00024931,3]
[329458479,1718375506563,-977.15,0.00024931,3]
[329458480,1718375506593,-500.0,0.00024931,3]
[329458481,1718375506628,-500.0,0.00024931,3]
[329458482,1718375506659,-1130.03,0.00024931,3]
[329458483,1718375506689,-813.31,0.00024931,3]
[329458484,1718375506701,-1337.02,0.00024931,3]
[329458485,1718375506715,-2450.65,0.00024931,3]
[329458486,1718375506728,-714.87,0.00024931,3]
[329458487,1718375506756,-500.0,0.00024931,3]
[329458488,1718375506768,-500.0,0.00024931,3]
[329458489,1718375506815,-639.37,0.00024931,3]
[329458490,1718375506827,-1156.72,0.00024931,3]
[329458491,1718375506849,-682.25,0.00024931,3]
[329458492,1718375506866,-500.0,0.00024931,3]
[329458493,1718375507107,-919.1,0.00024931,3]
[329458494,1718375507120,-990.78,0.00024931,3]
[329458495,1718375507148,-2286.03,0.00024931,3]
[329458496,1718375507160,-500.0,0.00024931,3]
[329458497,1718375507207,-689.0,0.00024931,3]
[329458498,1718375507237,-681.41,0.00024931,3]
[329458499,1718375507257,-1114.17,0.00024931,3]
[329458500,1718375507274,-322.13,0.00024931,3]
[329458501,1718375507287,-500.0,0.00024931,3]
[329458502,1718375507304,-500.0,0.00024931,3]
[329458503,1718375507324,-630.9,0.00024931,3]
[329458504,1718375507346,-518.65,0.00024931,3]
[329458505,1718375507393,-1932.93,0.00024931,3]
[329458506,1718375507420,-1900.62,0.00024931,3]
[329458507,1718375507438,-534.23,0.00024931,3]
[329458508,1718375507476,-500.0,0.00024931,3]
[329458509,1718375507495,-725.76,0.00024931,3]
[329458510,1718375507507,-500.0,0.00024931,3]
[329458511,1718375507518,-1356.74,0.00024931,3]
[329458512,1718375507530,-625.05,0.00024931,3]
[329458513,1718375507542,-253.888723,0.00024931,7]
[329458514,1718375507568,-790.29,0.00024931,3]
[329458515,1718375507579,-999.51,0.00024931,3]
[329458516,1718375507599,-890.5,0.00024931,3]
[329458517,1718375507612,-253.888723,0.00024931,7]
[329458518,1718375507639,-703.53,0.00024931,3]
[329458519,1718375507671,-714.04,0.00024931,3]
[329458520,1718375507698,-2927.02,0.00024931,3]
[329458521,1718375507723,-844.73,0.00024931,3]
[329458522,1718375507743,-3722.27,0.00024931,3]
[329458523,1718375507760,-1143.48,0.00024931,3]
[329458524,1718375507808,-1338.0,0.00024931,3]
[329458525,1718375507825,-500.0,0.00024931,3]
[329458526,1718375507844,-1188.6,0.00024931,3]
[329458527,1718375507875,-811.55,0.00024931,3]
[329458528,1718375507897,-768.65,0.00024931,3]
[329458529,1718375507922,-500.0,0.00024931,3]
[329458530,1718375507937,-500.0,0.00024931,3]
[329458531,1718375507949,-1142.61,0.00024931,3]
[329458532,1718375507962,-500.0,0.00024931,3]
[329458533,1718375507980,-732.25,0.00024931,3]
[329458534,1718375507999,-948.86,0.00024931,3]
[329458535,1718375508017,-1267.24,0.00024931,3]
[329458536,1718375508030,-500.0,0.00024931,3]
[329458537,1718375508047,-500.0,0.00024931,3]
[329458538,1718375508070,-500.0,0.00024931,3]
[329458539,1718375508081,-500.0,0.00024931,3]
[329458540,1718375508098,-759.96,0.00024931,3]
[329458541,1718375508127,-1341.43,0.00024931,3]
[329458542,1718375508144,-500.0,0.00024931,3]
[329458543,1718375508163,-500.0,0.00024931,3]
[329458544,1718375508175,-884.97,0.00024931,3]
[329458545,1718375508186,-500.0,0.00024931,3]
[329458546,1718375508200,-1063.59,0.00024931,3]
[329458547,1718375508212,-500.0,0.00024931,3]
[329458548,1718375508230,-500.0,0.00024931,3]
[329458549,1718375508250,-500.0,0.00024931,3]
[329458550,1718375508280,-848.76,0.00024931,3]
[329458551,1718375508298,-500.0,0.00024931,3]